[Event "*** Titled Tuesday Blitz"]
[Site "Chess.com"]
[Date "2021.03.09"]
[Round "2"]
[White "RobertoJBM"]
[Black "zeitnot2006"]
[Result "1/2-1/2"]
[WhiteElo "2723"]
[BlackElo "2509"]
[TimeControl "180+1"]
[EndTime "10:20:34 PST"]
[Termination "Game drawn by 50-move rule"]

1. d4 {[%clk 0:03:00.9]} 1... a6 {[%clk 0:02:59.5]} 2. e4 {[%clk 0:02:59.4]}
2... e6 {[%clk 0:02:58.7]} 3. Nf3 {[%clk 0:02:58.7]} 3... d5 {[%clk 0:02:58.3]}
4. Nbd2 {[%clk 0:02:52.6]} 4... c5 {[%clk 0:02:52.7]} 5. exd5 {[%clk 0:02:50.7]}
5... Qxd5 {[%clk 0:02:47.6]} 6. Bc4 {[%clk 0:02:45.3]} 6... Qd8 {[%clk
0:02:43.3]} 7. dxc5 {[%clk 0:02:40.2]} 7... Bxc5 {[%clk 0:02:44.2]} 8. O-O
{[%clk 0:02:38.5]} 8... b5 {[%clk 0:02:43.7]} 9. Bb3 {[%clk 0:02:32.2]} 9... Bb7
{[%clk 0:02:41.6]} 10. Qe2 {[%clk 0:02:32]} 10... Nf6 {[%clk 0:02:29.4]} 11. a4
{[%clk 0:02:19.3]} 11... Qb6 {[%clk 0:02:19.1]} 12. axb5 {[%clk 0:02:14.4]}
12... axb5 {[%clk 0:02:20]} 13. Rxa8 {[%clk 0:02:13.8]} 13... Bxa8 {[%clk
0:02:20.4]} 14. Ne5 {[%clk 0:02:08.8]} 14... O-O {[%clk 0:02:06]} 15. Nd3 {[%clk
0:02:04.4]} 15... Bd6 {[%clk 0:02:03.4]} 16. Nf3 {[%clk 0:01:57.2]} 16... Qc7
{[%clk 0:01:59.4]} 17. h3 {[%clk 0:01:50.4]} 17... Bd5 {[%clk 0:01:57.2]} 18.
Bxd5 {[%clk 0:01:47.5]} 18... Nxd5 {[%clk 0:01:58.1]} 19. c3 {[%clk 0:01:40]}
19... Nd7 {[%clk 0:01:55.7]} 20. Be3 {[%clk 0:01:34.6]} 20... Qc4 {[%clk
0:01:52.1]} 21. Rd1 {[%clk 0:01:30.1]} 21... Ra8 {[%clk 0:01:35]} 22. Nc1 {[%clk
0:01:16.5]} 22... Qxe2 {[%clk 0:01:31.5]} 23. Nxe2 {[%clk 0:01:17.4]} 23... Ra2
{[%clk 0:01:28.1]} 24. Bc1 {[%clk 0:01:14.4]} 24... Nc5 {[%clk 0:01:19.6]} 25.
Nfd4 {[%clk 0:01:00.3]} 25... b4 {[%clk 0:00:49.5]} 26. cxb4 {[%clk 0:00:36.8]}
26... Nxb4 {[%clk 0:00:45.1]} 27. Nxe6 {[%clk 0:00:28.5]} 27... Nxe6 {[%clk
0:00:30.5]} 28. Rxd6 {[%clk 0:00:27.9]} 28... h6 {[%clk 0:00:26.1]} 29. f4
{[%clk 0:00:22]} 29... Nc5 {[%clk 0:00:23.2]} 30. Rd1 {[%clk 0:00:16.1]} 30...
Nb3 {[%clk 0:00:21.4]} 31. Be3 {[%clk 0:00:13]} 31... Rxb2 {[%clk 0:00:20.7]}
32. Nd4 {[%clk 0:00:13.4]} 32... Nxd4 {[%clk 0:00:18.9]} 33. Bxd4 {[%clk
0:00:13.7]} 33... Rc2 {[%clk 0:00:19.5]} 34. f5 {[%clk 0:00:13.1]} 34... Nd5
{[%clk 0:00:17.8]} 35. f6 {[%clk 0:00:12.9]} 35... Nf4 {[%clk 0:00:16.1]} 36.
fxg7 {[%clk 0:00:12.2]} 36... Ne2+ {[%clk 0:00:12.1]} 37. Kh2 {[%clk 0:00:12.1]}
37... Nxd4 {[%clk 0:00:12.2]} 38. Rxd4 {[%clk 0:00:13]} 38... Kxg7 {[%clk
0:00:13]} 39. Rg4+ {[%clk 0:00:13.3]} 39... Kh7 {[%clk 0:00:13.3]} 40. Rg3
{[%clk 0:00:14.2]} 40... Rc6 {[%clk 0:00:12.8]} 41. Rf3 {[%clk 0:00:14.5]} 41...
Kg7 {[%clk 0:00:12.8]} 42. Kg3 {[%clk 0:00:15]} 42... Rg6+ {[%clk 0:00:12.9]}
43. Kf2 {[%clk 0:00:14.6]} 43... Ra6 {[%clk 0:00:13.2]} 44. Kg1 {[%clk
0:00:14.5]} 44... Ra1+ {[%clk 0:00:13.4]} 45. Kh2 {[%clk 0:00:14.9]} 45... Ra6
{[%clk 0:00:14.3]} 46. Re3 {[%clk 0:00:14.5]} 46... Rg6 {[%clk 0:00:14.3]} 47.
g4 {[%clk 0:00:14.2]} 47... Rb6 {[%clk 0:00:12.8]} 48. Kg3 {[%clk 0:00:14.3]}
48... Kg6 {[%clk 0:00:13.2]} 49. Kh4 {[%clk 0:00:14.6]} 49... Ra6 {[%clk
0:00:12.8]} 50. Rd3 {[%clk 0:00:14.9]} 50... Rb6 {[%clk 0:00:13.1]} 51. Rd4
{[%clk 0:00:15.3]} 51... Ra6 {[%clk 0:00:13.4]} 52. Rc4 {[%clk 0:00:15.7]} 52...
Rb6 {[%clk 0:00:13.6]} 53. Rc3 {[%clk 0:00:16.1]} 53... Ra6 {[%clk 0:00:14]} 54.
Kg3 {[%clk 0:00:16.6]} 54... Rb6 {[%clk 0:00:14.2]} 55. h4 {[%clk 0:00:17.1]}
55... h5 {[%clk 0:00:13.3]} 56. gxh5+ {[%clk 0:00:16.2]} 56... Kxh5 {[%clk
0:00:14.2]} 57. Rc5+ {[%clk 0:00:16.2]} 57... Kg6 {[%clk 0:00:14]} 58. h5+
{[%clk 0:00:16.1]} 58... Kh6 {[%clk 0:00:14.3]} 59. Kg4 {[%clk 0:00:16.9]} 59...
Rb4+ {[%clk 0:00:13]} 60. Kf5 {[%clk 0:00:17.3]} 60... Rb1 {[%clk 0:00:12.4]}
61. Kf6 {[%clk 0:00:16.8]} 61... Rf1+ {[%clk 0:00:12.5]} 62. Rf5 {[%clk
0:00:16.3]} 62... Rxf5+ {[%clk 0:00:09.3]} 63. Kxf5 {[%clk 0:00:17.2]} 63... Kg7
{[%clk 0:00:08.4]} 64. Kg5 {[%clk 0:00:16.7]} 64... Kh8 {[%clk 0:00:08.5]} 65.
Kf6 {[%clk 0:00:16.8]} 65... Kg8 {[%clk 0:00:09.4]} 66. h6 {[%clk 0:00:16.8]}
66... Kh8 {[%clk 0:00:09.9]} 67. Kxf7 {[%clk 0:00:16.7]} 67... Kh7 {[%clk
0:00:09.1]} 68. Kf6 {[%clk 0:00:17.6]} 68... Kh8 {[%clk 0:00:10]} 69. Kf5 {[%clk
0:00:17.8]} 69... Kg8 {[%clk 0:00:10.9]} 70. Kf4 {[%clk 0:00:18.2]} 70... Kh8
{[%clk 0:00:11.8]} 71. Kg4 {[%clk 0:00:19.1]} 71... Kg8 {[%clk 0:00:12.7]} 72.
Kh5 {[%clk 0:00:19.8]} 72... Kh8 {[%clk 0:00:13.6]} 73. Kg5 {[%clk 0:00:20.7]}
73... Kg8 {[%clk 0:00:14.5]} 74. Kh4 {[%clk 0:00:21.6]} 74... Kh8 {[%clk
0:00:15.4]} 75. Kh3 {[%clk 0:00:22.1]} 75... Kg8 {[%clk 0:00:16.3]} 76. Kg4
{[%clk 0:00:22.9]} 76... Kh8 {[%clk 0:00:17.2]} 77. Kf3 {[%clk 0:00:23]} 77...
Kg8 {[%clk 0:00:18.1]} 78. Ke4 {[%clk 0:00:23.5]} 78... Kh8 {[%clk 0:00:19]} 79.
Ke5 {[%clk 0:00:24]} 79... Kg8 {[%clk 0:00:19.9]} 80. Ke6 {[%clk 0:00:24.5]}
80... Kh8 {[%clk 0:00:20.8]} 81. Kf6 {[%clk 0:00:24.6]} 81... Kg8 {[%clk
0:00:21.7]} 82. Kg6 {[%clk 0:00:24.7]} 82... Kh8 {[%clk 0:00:22.6]} 83. Kf7
{[%clk 0:00:24.4]} 83... Kh7 {[%clk 0:00:22.6]} 84. Ke7 {[%clk 0:00:25.3]} 84...
Kh8 {[%clk 0:00:23.5]} 85. Ke8 {[%clk 0:00:25.9]} 85... Kg8 {[%clk 0:00:24.4]}
86. Kd7 {[%clk 0:00:26.8]} 86... Kh8 {[%clk 0:00:25.3]} 87. Kd6 {[%clk
0:00:27.5]} 87... Kg8 {[%clk 0:00:26.2]} 88. Kd5 {[%clk 0:00:28.3]} 88... Kh8
{[%clk 0:00:27.1]} 89. Kc5 {[%clk 0:00:29.2]} 89... Kg8 {[%clk 0:00:28]} 90. Kc4
{[%clk 0:00:30.1]} 90... Kh8 {[%clk 0:00:28.9]} 91. Kd4 {[%clk 0:00:31]} 91...
Kg8 {[%clk 0:00:29.8]} 92. Kd3 {[%clk 0:00:31.9]} 92... Kh8 {[%clk 0:00:30.7]}
93. Kc3 {[%clk 0:00:32.8]} 93... Kg8 {[%clk 0:00:31.6]} 94. Kc2 {[%clk
0:00:33.7]} 94... Kh8 {[%clk 0:00:32.5]} 95. Kd2 {[%clk 0:00:34.6]} 95... Kg8
{[%clk 0:00:33.4]} 96. Kd1 {[%clk 0:00:35.5]} 96... Kh8 {[%clk 0:00:34.3]} 97.
Ke2 {[%clk 0:00:36.4]} 97... Kg8 {[%clk 0:00:35.2]} 98. Ke1 {[%clk 0:00:37.3]}
98... Kh8 {[%clk 0:00:36.1]} 99. Kf2 {[%clk 0:00:38.2]} 99... Kg8 {[%clk
0:00:37]} 100. Kg1 {[%clk 0:00:39.1]} 100... Kh8 {[%clk 0:00:37.9]} 101. Kg2
{[%clk 0:00:39.9]} 101... Kg8 {[%clk 0:00:38.8]} 102. Kh2 {[%clk 0:00:40.8]}
102... Kh8 {[%clk 0:00:39.7]} 103. Kh1 {[%clk 0:00:41.7]} 103... Kg8 {[%clk
0:00:40.6]} 104. Kg2 {[%clk 0:00:42.6]} 104... Kh8 {[%clk 0:00:41.5]} 105. Kf3
{[%clk 0:00:43.5]} 105... Kg8 {[%clk 0:00:42.4]} 106. Ke4 {[%clk 0:00:44.4]}
106... Kh8 {[%clk 0:00:43.3]} 107. Kd5 {[%clk 0:00:45.2]} 107... Kg8 {[%clk
0:00:44.2]} 108. Kc6 {[%clk 0:00:46.1]} 108... Kh8 {[%clk 0:00:45.1]} 109. Kb7
{[%clk 0:00:47]} 109... Kh7 {[%clk 0:00:42]} 110. Ka8 {[%clk 0:00:47.9]} 110...
Kg8 {[%clk 0:00:42.9]} 111. Ka7 {[%clk 0:00:48.8]} 111... Kh8 {[%clk 0:00:43.8]}
112. Kb8 {[%clk 0:00:49.7]} 112... Kg8 {[%clk 0:00:44.7]} 113. Kc7 {[%clk
0:00:50.6]} 113... Kh8 {[%clk 0:00:45.3]} 114. Kb6 {[%clk 0:00:51.5]} 114... Kg8
{[%clk 0:00:46.2]} 115. Ka5 {[%clk 0:00:52.4]} 115... Kh8 {[%clk 0:00:47.1]}
116. Kb4 {[%clk 0:00:53.3]} 116... Kg8 {[%clk 0:00:48]} 117. Kc5 {[%clk
0:00:54.2]} 1/2-1/2

[Event "*** Titled Tuesday Blitz"]
[Site "Chess.com"]
[Date "2021.03.09"]
[Round "2"]
[White "BigAl"]
[Black "FlySooHigh"]
[Result "1-0"]
[WhiteElo "2507"]
[BlackElo "2691"]
[TimeControl "180+1"]
[EndTime "10:20:43 PST"]
[Termination "BigAl won by checkmate"]

1. Nf3 {[%clk 0:03:00.9]} 1... Nf6 {[%clk 0:02:59.5]} 2. g3 {[%clk 0:03:00.8]}
2... b6 {[%clk 0:02:59.3]} 3. Bg2 {[%clk 0:03:01.3]} 3... Bb7 {[%clk 0:02:59.9]}
4. O-O {[%clk 0:03:01.9]} 4... c5 {[%clk 0:02:59.8]} 5. d3 {[%clk 0:03:02.3]}
5... e6 {[%clk 0:02:59.6]} 6. e4 {[%clk 0:03:02]} 6... d6 {[%clk 0:02:58.5]} 7.
a4 {[%clk 0:03:01]} 7... a6 {[%clk 0:02:56.7]} 8. Nbd2 {[%clk 0:02:44.7]} 8...
Be7 {[%clk 0:02:56.2]} 9. Re1 {[%clk 0:02:40.3]} 9... O-O {[%clk 0:02:55.6]} 10.
e5 {[%clk 0:02:40.6]} 10... dxe5 {[%clk 0:02:55.3]} 11. Nxe5 {[%clk 0:02:40.9]}
11... Bxg2 {[%clk 0:02:55.3]} 12. Kxg2 {[%clk 0:02:41.6]} 12... Qd5+ {[%clk
0:02:35.4]} 13. Qf3 {[%clk 0:02:40.9]} 13... Rc8 {[%clk 0:02:30.5]} 14. Ndc4
{[%clk 0:02:33.2]} 14... Qxf3+ {[%clk 0:02:24.6]} 15. Kxf3 {[%clk 0:02:27.6]}
15... Nbd7 {[%clk 0:02:23.8]} 16. Nxd7 {[%clk 0:02:23.6]} 16... Nxd7 {[%clk
0:02:23.3]} 17. Bf4 {[%clk 0:02:24.3]} 17... Bd8 {[%clk 0:01:51.2]} 18. h4
{[%clk 0:02:03.5]} 18... Nf6 {[%clk 0:01:49.8]} 19. a5 {[%clk 0:01:56.2]} 19...
bxa5 {[%clk 0:01:40.8]} 20. Nxa5 {[%clk 0:01:36.8]} 20... Nd5 {[%clk 0:01:40.8]}
21. Bd2 {[%clk 0:01:33.2]} 21... Bxa5 {[%clk 0:01:06.9]} 22. Rxa5 {[%clk
0:01:32.8]} 22... c4 {[%clk 0:01:07.2]} 23. dxc4 {[%clk 0:01:28.6]} 23... Rxc4
{[%clk 0:01:07]} 24. c3 {[%clk 0:01:29.2]} 24... Kf8 {[%clk 0:01:02.6]} 25. b3
{[%clk 0:01:10.8]} 25... Rc6 {[%clk 0:01:00.4]} 26. c4 {[%clk 0:01:10.8]} 26...
Nf6 {[%clk 0:00:56.8]} 27. Bf4 {[%clk 0:01:04.7]} 27... Ke8 {[%clk 0:00:55]} 28.
Be5 {[%clk 0:01:03]} 28... Ke7 {[%clk 0:00:48.6]} 29. Rea1 {[%clk 0:01:00]}
29... g6 {[%clk 0:00:39.3]} 30. c5 {[%clk 0:00:52.8]} 30... Nd5 {[%clk 0:00:37]}
31. Bd6+ {[%clk 0:00:52.6]} 31... Kf6 {[%clk 0:00:36.8]} 32. g4 {[%clk
0:00:48.7]} 32... h5 {[%clk 0:00:33.2]} 33. g5+ {[%clk 0:00:47.2]} 33... Kf5
{[%clk 0:00:31.2]} 34. Re1 {[%clk 0:00:43.8]} 34... f6 {[%clk 0:00:29.2]} 35.
gxf6 {[%clk 0:00:43.3]} 35... Kxf6 {[%clk 0:00:29.7]} 36. Ra4 {[%clk 0:00:38.1]}
36... Re8 {[%clk 0:00:14.4]} 37. Rea1 {[%clk 0:00:32.5]} 37... Ra8 {[%clk
0:00:13.9]} 38. b4 {[%clk 0:00:32.1]} 38... Nc3 {[%clk 0:00:12.2]} 39. Ra5
{[%clk 0:00:28.1]} 39... Rac8 {[%clk 0:00:08.8]} 40. Rxa6 {[%clk 0:00:24.9]}
40... Nb5 {[%clk 0:00:09.3]} 41. Rxc6 {[%clk 0:00:22.3]} 41... Rxc6 {[%clk
0:00:10.2]} 42. Ke4 {[%clk 0:00:21.3]} 42... Nxd6+ {[%clk 0:00:08.9]} 43. cxd6
{[%clk 0:00:21.4]} 43... Rxd6 {[%clk 0:00:09.8]} 44. b5 {[%clk 0:00:19.1]} 44...
Rb6 {[%clk 0:00:08.4]} 45. Rb1 {[%clk 0:00:19.7]} 45... g5 {[%clk 0:00:07.9]}
46. hxg5+ {[%clk 0:00:18.1]} 46... Kxg5 {[%clk 0:00:08.8]} 47. Kd4 {[%clk
0:00:18.7]} 47... h4 {[%clk 0:00:08.6]} 48. Kc5 {[%clk 0:00:19.6]} 48... Rb8
{[%clk 0:00:08.8]} 49. Re1 {[%clk 0:00:17.8]} 49... Kf5 {[%clk 0:00:08.1]} 50.
b6 {[%clk 0:00:16.5]} 50... e5 {[%clk 0:00:07.9]} 51. Kc6 {[%clk 0:00:14.9]}
51... Kf4 {[%clk 0:00:08.3]} 52. Kc7 {[%clk 0:00:14.7]} 52... Rf8 {[%clk
0:00:08.6]} 53. b7 {[%clk 0:00:14.3]} 53... h3 {[%clk 0:00:08.7]} 54. Rd1 {[%clk
0:00:13.3]} 54... h2 {[%clk 0:00:07.1]} 55. Rh1 {[%clk 0:00:09.1]} 55... Rh8
{[%clk 0:00:07.2]} 56. Rxh2 {[%clk 0:00:08.6]} 56... Rxh2 {[%clk 0:00:08.1]} 57.
b8=Q {[%clk 0:00:09.1]} 57... Rxf2 {[%clk 0:00:08.7]} 58. Kd6 {[%clk 0:00:06.7]}
58... Rd2+ {[%clk 0:00:07.2]} 59. Ke6 {[%clk 0:00:06.8]} 59... Re2 {[%clk
0:00:07.8]} 60. Qd6 {[%clk 0:00:05.9]} 60... Re3 {[%clk 0:00:07.4]} 61. Qb4+
{[%clk 0:00:03.8]} 61... e4 {[%clk 0:00:07.2]} 62. Qf8+ {[%clk 0:00:02.9]} 62...
Kg3 {[%clk 0:00:07.2]} 63. Ke5 {[%clk 0:00:03.1]} 63... Re2 {[%clk 0:00:07.3]}
64. Qf4+ {[%clk 0:00:02.1]} 64... Kg2 {[%clk 0:00:07.9]} 65. Kd4 {[%clk
0:00:02]} 65... Re1 {[%clk 0:00:07.3]} 66. Qg4+ {[%clk 0:00:01.7]} 66... Kf2
{[%clk 0:00:07.1]} 67. Qf5+ {[%clk 0:00:02.4]} 67... Kg2 {[%clk 0:00:07.1]} 68.
Qg4+ {[%clk 0:00:03]} 68... Kf2 {[%clk 0:00:07.5]} 69. Qh4+ {[%clk 0:00:03.9]}
69... Kf1 {[%clk 0:00:07.5]} 70. Kc3 {[%clk 0:00:03.8]} 70... e3 {[%clk
0:00:07.2]} 71. Kd3 {[%clk 0:00:03.9]} 71... Rd1+ {[%clk 0:00:03.9]} 72. Kxe3
{[%clk 0:00:03.8]} 72... Re1+ {[%clk 0:00:04.8]} 73. Kd2 {[%clk 0:00:04.3]}
73... Re2+ {[%clk 0:00:04.7]} 74. Kd1 {[%clk 0:00:04.9]} 74... Rf2 {[%clk
0:00:04.2]} 75. Qh1# {[%clk 0:00:05.4]} 1-0

[Event "*** Titled Tuesday Blitz"]
[Site "Chess.com"]
[Date "2021.03.09"]
[Round "2"]
[White "ukchessbomber"]
[Black "DenLaz"]
[Result "0-1"]
[WhiteElo "2536"]
[BlackElo "2841"]
[TimeControl "180+1"]
[EndTime "10:20:45 PST"]
[Termination "DenLaz won by resignation"]

1. d4 {[%clk 0:03:00.9]} 1... d5 {[%clk 0:02:59.2]} 2. c4 {[%clk 0:03:01.3]}
2... c6 {[%clk 0:02:59.2]} 3. Nc3 {[%clk 0:03:01.3]} 3... Nf6 {[%clk 0:02:59.2]}
4. cxd5 {[%clk 0:03:01.7]} 4... cxd5 {[%clk 0:02:59]} 5. Bf4 {[%clk 0:03:02.3]}
5... Nc6 {[%clk 0:02:58.5]} 6. e3 {[%clk 0:03:02.3]} 6... Bf5 {[%clk 0:02:58.4]}
7. Qb3 {[%clk 0:03:01.7]} 7... Na5 {[%clk 0:02:58.8]} 8. Qa4+ {[%clk 0:03:02.3]}
8... Bd7 {[%clk 0:02:59.1]} 9. Qc2 {[%clk 0:03:02.8]} 9... e6 {[%clk 0:02:59]}
10. Bd3 {[%clk 0:03:02.7]} 10... Be7 {[%clk 0:02:59.2]} 11. Nf3 {[%clk 0:03:03]}
11... Nc6 {[%clk 0:02:59.2]} 12. a3 {[%clk 0:03:01.6]} 12... Nh5 {[%clk
0:02:58.9]} 13. Be5 {[%clk 0:03:00.3]} 13... f6 {[%clk 0:02:58.7]} 14. Bg3
{[%clk 0:03:00.5]} 14... f5 {[%clk 0:02:59]} 15. O-O {[%clk 0:02:59.1]} 15...
Nxg3 {[%clk 0:02:49.3]} 16. hxg3 {[%clk 0:03:00]} 16... O-O {[%clk 0:02:47.2]}
17. b4 {[%clk 0:02:59.5]} 17... Rc8 {[%clk 0:02:42.1]} 18. Qb3 {[%clk
0:02:49.6]} 18... Kh8 {[%clk 0:02:26.4]} 19. Na4 {[%clk 0:02:47.5]} 19... Rc7
{[%clk 0:02:22.2]} 20. Nc5 {[%clk 0:02:45.9]} 20... Bc8 {[%clk 0:02:22.2]} 21.
Rac1 {[%clk 0:02:44.3]} 21... Bd6 {[%clk 0:02:20.9]} 22. Qa4 {[%clk 0:02:35.6]}
22... Re7 {[%clk 0:01:38.4]} 23. Bb5 {[%clk 0:02:12.5]} 23... Nb8 {[%clk
0:01:36.5]} 24. Ne5 {[%clk 0:02:06.1]} 24... g5 {[%clk 0:01:23.3]} 25. Ncd3
{[%clk 0:01:38.6]} 25... a6 {[%clk 0:01:19.4]} 26. f4 {[%clk 0:01:30.1]} 26...
axb5 {[%clk 0:01:17.3]} 27. Qxb5 {[%clk 0:01:31]} 27... g4 {[%clk 0:01:06.9]}
28. Rc2 {[%clk 0:01:30]} 28... Bd7 {[%clk 0:01:03.8]} 29. Nxd7 {[%clk
0:01:20.6]} 29... Qxd7 {[%clk 0:01:04.7]} 30. Qb6 {[%clk 0:01:18.2]} 30... Qd8
{[%clk 0:01:03.5]} 31. Qb5 {[%clk 0:01:17.6]} 31... Rff7 {[%clk 0:00:58.4]} 32.
Rfc1 {[%clk 0:01:17]} 32... Rc7 {[%clk 0:00:57.8]} 33. Rxc7 {[%clk 0:01:10.5]}
33... Bxc7 {[%clk 0:00:52.5]} 34. Nc5 {[%clk 0:01:08]} 34... Qe7 {[%clk
0:00:29.9]} 35. Qxb7 {[%clk 0:01:02.9]} 35... Bxf4 {[%clk 0:00:24.9]} 36. exf4
{[%clk 0:00:36.8]} 36... Qxb7 {[%clk 0:00:19.4]} 37. Nxb7 {[%clk 0:00:37.7]}
37... Rxb7 {[%clk 0:00:20.3]} 38. Rc8+ {[%clk 0:00:37.8]} 38... Kg7 {[%clk
0:00:20.9]} 39. Re8 {[%clk 0:00:38.4]} 39... Kf6 {[%clk 0:00:19.9]} 40. Rc8
{[%clk 0:00:37.3]} 40... Nd7 {[%clk 0:00:19.8]} 41. Rc6 {[%clk 0:00:35.2]} 41...
Nb6 {[%clk 0:00:19.3]} 42. b5 {[%clk 0:00:32.2]} 42... Na4 {[%clk 0:00:19.7]}
43. Ra6 {[%clk 0:00:32.1]} 43... Nc3 {[%clk 0:00:19.9]} 44. a4 {[%clk
0:00:32.5]} 44... Ne2+ {[%clk 0:00:20.6]} 45. Kf2 {[%clk 0:00:32.3]} 45... Nxd4
{[%clk 0:00:21.5]} 46. b6 {[%clk 0:00:29.5]} 46... Nc6 {[%clk 0:00:21.8]} 47. a5
{[%clk 0:00:29.8]} 47... Nxa5 {[%clk 0:00:21.1]} 48. Rxa5 {[%clk 0:00:28.9]}
48... Rxb6 {[%clk 0:00:21.7]} 49. Ra8 {[%clk 0:00:28.5]} 49... Rb2+ {[%clk
0:00:20.6]} 50. Kf1 {[%clk 0:00:28.6]} 50... Rb7 {[%clk 0:00:18.6]} 51. Rf8+
{[%clk 0:00:27.6]} 51... Rf7 {[%clk 0:00:18.8]} 52. Rc8 {[%clk 0:00:26.1]} 52...
Re7 {[%clk 0:00:16.3]} 53. Rc6 {[%clk 0:00:25.2]} 53... Ra7 {[%clk 0:00:15.7]}
54. Rd6 {[%clk 0:00:22.9]} 54... Ke7 {[%clk 0:00:15.6]} 55. Rb6 {[%clk
0:00:23.5]} 55... Ra1+ {[%clk 0:00:15.4]} 56. Kf2 {[%clk 0:00:23.3]} 56... Ra2+
{[%clk 0:00:16.1]} 57. Kf1 {[%clk 0:00:22.6]} 57... h5 {[%clk 0:00:13.7]} 58.
Rb7+ {[%clk 0:00:22.3]} 58... Kd6 {[%clk 0:00:14.1]} 59. Rb6+ {[%clk 0:00:22.8]}
59... Kd7 {[%clk 0:00:14.3]} 60. Kg1 {[%clk 0:00:18.7]} 60... Rc2 {[%clk
0:00:14.1]} 61. Kf1 {[%clk 0:00:17.7]} 61... Rc6 {[%clk 0:00:13.8]} 62. Rb7+
{[%clk 0:00:17.5]} 62... Kd6 {[%clk 0:00:14.3]} 63. Rh7 {[%clk 0:00:18.4]} 63...
Rc1+ {[%clk 0:00:14.5]} 64. Kf2 {[%clk 0:00:18.3]} 64... Rc2+ {[%clk 0:00:15.2]}
65. Kf1 {[%clk 0:00:19]} 65... d4 {[%clk 0:00:15.8]} 66. Rxh5 {[%clk 0:00:19.7]}
66... d3 {[%clk 0:00:16.3]} 67. Rh8 {[%clk 0:00:19]} 67... Kd5 {[%clk
0:00:15.8]} 68. Rd8+ {[%clk 0:00:14.8]} 68... Ke4 {[%clk 0:00:16.1]} 69. Re8
{[%clk 0:00:15.4]} 69... Rc1+ {[%clk 0:00:15.3]} 70. Kf2 {[%clk 0:00:15.2]}
70... d2 {[%clk 0:00:15.9]} 71. Rxe6+ {[%clk 0:00:12.7]} 71... Kd5 {[%clk
0:00:16.2]} 72. Re8 {[%clk 0:00:12.9]} 72... d1=Q {[%clk 0:00:15.5]} 73. Rd8+
{[%clk 0:00:13.8]} 73... Ke6 {[%clk 0:00:15.9]} 74. Rxd1 {[%clk 0:00:14.7]}
74... Rxd1 {[%clk 0:00:16.6]} 75. Ke3 {[%clk 0:00:15.3]} 75... Ra1 {[%clk
0:00:16.8]} 76. Kf2 {[%clk 0:00:16.2]} 76... Ra3 {[%clk 0:00:17.7]} 77. Kg1
{[%clk 0:00:15.6]} 77... Rxg3 {[%clk 0:00:18.3]} 78. Kh2 {[%clk 0:00:16.5]}
78... Ra3 {[%clk 0:00:19]} 79. Kg1 {[%clk 0:00:17.3]} 79... g3 {[%clk
0:00:18.7]} 80. Kf1 {[%clk 0:00:17.3]} 80... Ra2 {[%clk 0:00:19.1]} 81. Ke1
{[%clk 0:00:16.1]} 81... Rxg2 {[%clk 0:00:19.2]} 82. Kf1 {[%clk 0:00:16.7]}
82... Ra2 {[%clk 0:00:19.1]} 83. Kg1 {[%clk 0:00:17.6]} 83... Kd5 {[%clk
0:00:18.9]} 84. Kf1 {[%clk 0:00:17.3]} 84... Ke4 {[%clk 0:00:19.6]} 85. Kg1
{[%clk 0:00:16.9]} 85... Kf3 {[%clk 0:00:19.6]} 0-1